fUST/lending_fUST_20240528
["ID","MTS","AMOUNT","RATE_DAILY","PERIOD"]
[328121989,1716903044855,-500.0,0.00019178,2]
[328121990,1716903044864,-1886.72865182,0.00019178,2]
[328121991,1716903044873,-500.0,0.00019178,2]
[328121992,1716903044882,-500.0,0.00019178,2]
[328121993,1716903044893,-1886.72865182,0.00019178,2]
[328121994,1716903044904,-500.0,0.00019178,2]
[328121995,1716903044914,-1886.72865182,0.00019178,2]
[328121996,1716903044925,-500.0,0.00019178,2]
[328121997,1716903044935,-500.0,0.00019178,2]
[328121998,1716903044945,-582.0883771,0.00019178,2]
[328121999,1716903044955,-1886.72865182,0.00019178,2]
[328122000,1716903044964,-500.0,0.00019178,2]
[328122001,1716903044974,-500.0,0.00019178,2]
[328122002,1716903044987,-1886.72865182,0.00019178,2]
[328122003,1716903044997,-408.79578145,0.00019178,2]
[328122004,1716903045006,-500.0,0.00019178,2]
[328122005,1716903045016,-500.0,0.00019178,2]
[328122006,1716903045025,-500.0,0.00019178,2]
[328122007,1716903045034,-500.0,0.00019178,2]
[328122008,1716903045043,-260.82575436,0.00019178,2]
[328122009,1716903045053,-500.0,0.00019178,2]
[328122010,1716903045066,-1886.72865182,0.00019178,2]
[328122011,1716903045076,-500.0,0.00019178,2]
[328122012,1716903045086,-500.0,0.00019178,2]
[328122013,1716903045096,-500.0,0.00019178,2]
[328122014,1716903045105,-1886.72865182,0.00019178,2]
[328122015,1716903045115,-500.0,0.00019178,2]
[328122016,1716903045124,-1886.72865182,0.00019178,2]
[328122017,1716903045135,-1886.72865182,0.00019178,2]
[328122018,1716903045144,-1886.72865182,0.00019178,2]
[328122019,1716903045154,-1886.72865182,0.00019178,2]
[328122020,1716903045163,-1886.72865182,0.00019178,2]
[328122021,1716903045173,-1886.72865182,0.00019178,2]
[328122022,1716903045182,-1886.72865182,0.00019178,2]
[328122023,1716903045192,-1886.72865182,0.00019178,2]
[328122024,1716903045201,-1886.72865182,0.00019178,2]
[328122025,1716903045211,-1886.72865182,0.00019178,2]
[328122026,1716903045220,-1886.72865182,0.00019178,2]
[328122027,1716903045230,-1886.72865182,0.00019178,2]
[328122028,1716903045243,-499.99999999,0.00019178,2]
[328122029,1716903045253,-1886.72865181,0.00019178,2]
[328122030,1716903045262,-1886.72865181,0.00019178,2]
[328122031,1716903045271,-1886.72865181,0.00019178,2]
[328122032,1716903045281,-1886.72865181,0.00019178,2]
[328122033,1716903045290,-1886.72865181,0.00019178,2]
[328122034,1716903045300,-1886.72865181,0.00019178,2]
[328122035,1716903045310,-1886.72865181,0.00019178,2]
[328122036,1716903045319,-1886.72865181,0.00019178,2]
[328122037,1716903045329,-1886.72865181,0.00019178,2]
[328122038,1716903045338,-1886.72865181,0.00019178,2]
[328122039,1716903045347,-1886.72865181,0.00019178,2]
[328122040,1716903045356,-1886.72865181,0.00019178,2]
[328122041,1716903045365,-1886.72865181,0.00019178,2]
[328122042,1716903045374,-1886.72865181,0.00019178,2]
[328122043,1716903045383,-1886.72865181,0.00019178,2]
[328122044,1716903045392,-1886.72865181,0.00019178,2]
[328122045,1716903045401,-1886.72865181,0.00019178,2]
[328122046,1716903045410,-1886.72865181,0.00019178,2]
[328122047,1716903045420,-1886.72865181,0.00019178,2]
[328122048,1716903045429,-1886.72865181,0.00019178,2]
[328122049,1716903045437,-1886.72865181,0.00019178,2]
[328122050,1716903045446,-1886.72865181,0.00019178,2]
[328122051,1716903045455,-1886.72865181,0.00019178,2]
[328122052,1716903045464,-1886.72865181,0.00019178,2]
[328122053,1716903045473,-1886.72865181,0.00019178,2]
[328122054,1716903045484,-1886.72865181,0.00019178,2]
[328122055,1716903045494,-1886.72865181,0.00019178,2]
[328122056,1716903045503,-1760.9467417,0.00019178,2]
[328122057,1716903045512,-1760.9467417,0.00019178,2]
[328122058,1716903045522,-1760.9467417,0.00019178,2]
[328122059,1716903045531,-1760.9467417,0.00019178,2]
[328122060,1716903045540,-1760.9467417,0.00019178,2]
[328122061,1716903045550,-1760.9467417,0.00019178,2]
[328122062,1716903045559,-1760.9467417,0.00019178,2]
[328122063,1716903045573,-1760.9467417,0.00019178,2]
[328122064,1716903045583,-1760.94674168,0.00019178,2]
[328122065,1716903045593,-151.0,0.00019178,2]
[328122066,1716903045604,-165.463404,0.00019178,2]
[328122067,1716903045615,-151.0,0.00019178,2]
[328122068,1716903045626,-151.0,0.00019178,2]
[328122069,1716903045636,-151.0,0.00019178,2]
[328122070,1716903045646,-151.0,0.00019178,2]
[328122071,1716903045657,-151.0,0.00019178,2]
[328122072,1716903045668,-151.0,0.00019178,2]
[328122073,1716903045678,-151.0,0.00019178,2]
[328122074,1716903045687,-151.0,0.00019178,2]
[328122075,1716903045697,-151.0,0.00019178,2]
[328122076,1716903045707,-151.0,0.00019178,2]
[328122077,1716903045717,-155.69982,0.00019178,2]
[328122078,1716903045727,-151.0,0.00019178,2]
[328122079,1716903045737,-151.0,0.00019178,2]
[328122080,1716903045747,-151.0,0.00019178,2]
[328122081,1716903045756,-151.0,0.00019178,2]
[328122082,1716903045766,-151.0,0.00019178,2]
[328122083,1716903045777,-152.136972,0.00019178,2]
[328122084,1716903045787,-151.0,0.00019178,2]
[328122085,1716903045797,-151.0,0.00019178,2]
[328122086,1716903045808,-151.0,0.00019178,2]
[328122087,1716903045818,-151.0,0.00019178,2]
[328122088,1716903045827,-151.0,0.00019178,2]
[328122089,1716903045837,-151.0,0.00019178,2]
[328122090,1716903045847,-151.0,0.00019178,2]
[328122091,1716903045856,-151.0,0.00019178,2]
[328122092,1716903045866,-151.0,0.00019178,2]
[328122093,1716903045876,-210.779414,0.00019178,2]
[328122094,1716903045886,-151.0,0.00019178,2]
[328122095,1716903045895,-151.0,0.00019178,2]
[328122096,1716903045906,-160.256295,0.00019178,2]
[328122097,1716903045916,-170.636113,0.00019178,2]
[328122098,1716903045926,-151.0,0.00019178,2]
[328122099,1716903045935,-151.0,0.00019178,2]
[328122100,1716903045945,-151.0,0.00019178,2]
[328122101,1716903045955,-151.0,0.00019365,2]
[328122102,1716903045965,-151.0,0.00019365,2]
[328122103,1716903045975,-242.51927909,0.00019996,2]
[328122104,1716903045986,-847.47225448,0.00019998,2]
[328122105,1716903046000,-11.75959398,0.00019998,2]
[328122107,1716903046010,-439.0404312,0.0002,5]
[328122109,1716903046020,-24.47480465,0.0002,2]
[328122111,1716903046032,-1352.94956658,0.0002,2]
[328122256,1716904039135,-2523.28439805,0.00018654,2]
[328122257,1716904039161,-151.0,0.00018656,3]
[328122258,1716904039184,-151.0,0.00018656,2]
[328122259,1716904039207,-763.00219509,0.00018899,2]
[328122260,1716904039231,-1119.6486622,0.000189,2]
[328122261,1716904039256,-522.33782236,0.00019178,2]
[328122262,1716904039291,-174.375222,0.00019178,2]
[328122263,1716904039316,-4229.06661595,0.00019848,2]
[328122264,1716904039343,-189.69416459,0.00019897,2]
[328122265,1716904039369,-396.94781133,0.000199,2]
[328122266,1716904039393,-500.0,0.00019995,2]
[328122267,1716904039417,-500.0,0.00019995,2]
[328122268,1716904039441,-177.00596848,0.00019995,2]
[328122269,1716904039465,-278.24772631,0.00019995,2]
[328122270,1716904039490,-516.63967886,0.00019995,2]
[328122271,1716904039516,-500.0,0.00019995,2]
[328122272,1716904039542,-175.19819205,0.00019995,2]
[328122273,1716904039566,-934.05830012,0.00019995,2]
[328122274,1716904039588,-325.22951407,0.00019995,2]
[328122275,1716904039608,-500.0,0.00019995,2]
[328122276,1716904039635,-934.05830012,0.00019995,2]
[328122277,1716904039656,-226.05752525,0.00019995,2]
[328122278,1716904039681,-274.62651313,0.00019995,2]
[328122279,1716904039704,-500.0,0.00019995,2]
[328122280,1716904039729,-934.05830012,0.00019995,2]
[328122281,1716904039753,-500.0,0.00019995,2]
[328122282,1716904039784,-500.0,0.00019995,2]
[328122283,1716904039808,-934.05830012,0.00019995,2]
[328122284,1716904039831,-500.0,0.00019995,2]
[328122285,1716904039854,-934.05830012,0.00019995,2]
[328122286,1716904039880,-500.0,0.00019995,2]
[328122287,1716904039905,-934.05830012,0.00019995,2]
[328122288,1716904039927,-500.0,0.00019995,2]
[328122289,1716904039952,-934.05830012,0.00019995,2]
[328122290,1716904039973,-500.0,0.00019995,2]
[328122291,1716904039997,-934.05830012,0.00019995,2]
[328122292,1716904040021,-934.05830012,0.00019995,2]
[328122293,1716904040048,-934.05830012,0.00019995,2]
[328122294,1716904040071,-934.05830012,0.00019995,2]
[328122295,1716904040094,-934.05830012,0.00019995,2]
[328122296,1716904040118,-934.05830012,0.00019995,2]
[328122297,1716904040141,-934.05830012,0.00019995,2]
[328122298,1716904040164,-934.05830012,0.00019995,2]
[328122299,1716904040187,-934.05830012,0.00019995,2]
[328122300,1716904040210,-934.05830012,0.00019995,2]
[328122301,1716904040233,-934.05830012,0.00019995,2]
[328122302,1716904040257,-934.05830012,0.00019995,2]
[328122303,1716904040285,-934.05830012,0.00019995,2]
[328122304,1716904040307,-934.05830012,0.00019995,2]
[328122305,1716904040332,-934.05830012,0.00019995,2]
[328122306,1716904040354,-934.05830012,0.00019995,2]
[328122307,1716904040378,-934.05830012,0.00019995,2]
[328122308,1716904040400,-934.05830012,0.00019995,2]
[328122309,1716904040422,-934.05830012,0.00019995,2]
[328122310,1716904040445,-934.05830012,0.00019995,2]
[328122311,1716904040467,-934.05830012,0.00019995,2]
[328122312,1716904040489,-934.05830012,0.00019995,2]
[328122313,1716904040514,-934.05830012,0.00019995,2]
[328122314,1716904040542,-934.05830012,0.00019995,2]
[328122315,1716904040565,-934.05830012,0.00019995,2]
[328122316,1716904040589,-934.05830012,0.00019995,2]
[328122317,1716904040613,-934.05830012,0.00019995,2]
[328122318,1716904040638,-934.05830012,0.00019995,2]
[328122319,1716904040659,-209.1310101,0.00019995,2]
[328122320,1716904040681,-326.15384191,0.00019995,2]
[328122321,1716904040703,-915.37713412,0.00019995,2]
[328122322,1716904040727,-915.37713412,0.00019995,2]
[328122323,1716904040753,-915.37713412,0.00019995,2]
[328122324,1716904040781,-915.37713412,0.00019995,2]
[328122325,1716904040805,-915.37713412,0.00019995,2]
[328122326,1716904040829,-915.37713412,0.00019995,2]
[328122327,1716904040853,-915.37713412,0.00019995,2]
[328122328,1716904040881,-915.37713412,0.00019995,2]
[328122329,1716904040906,-915.37713412,0.00019995,2]
[328122330,1716904040933,-915.37713412,0.00019995,2]
[328122331,1716904040957,-915.37713412,0.00019995,2]
[328122332,1716904040981,-915.37713412,0.00019995,2]
[328122333,1716904041007,-915.37713412,0.00019995,2]
[328122334,1716904041037,-915.37713412,0.00019995,2]
[328122335,1716904041060,-915.37713412,0.00019995,2]
[328122336,1716904041084,-915.37713412,0.00019995,2]
[328122337,1716904041107,-915.37713412,0.00019995,2]
[328122338,1716904041131,-915.37713412,0.00019995,2]
[328122339,1716904041155,-915.37713412,0.00019995,2]
[328122340,1716904041179,-915.37713412,0.00019995,2]
[328122341,1716904041203,-915.37713412,0.00019995,2]
[328122342,1716904041226,-915.37713412,0.00019995,2]
[328122343,1716904041250,-915.37713412,0.00019995,2]
[328122344,1716904041278,-915.37713412,0.00019995,2]
[328122345,1716904041307,-500.0,0.00019996,2]
[328122346,1716904041330,-500.0,0.00019996,2]
[328122347,1716904041352,-500.0,0.00019996,2]
[328122348,1716904041374,-500.0,0.00019996,2]
[328122349,1716904041396,-306.26828649,0.00019996,2]
[328122350,1716904041418,-194.4826775,0.00019998,2]
[328122351,1716904041438,-1337.79016571,0.00019998,2]
[328122352,1716904041461,-675.01719094,0.00019999,2]
[328122353,1716904041484,-21494.21677207,0.0002,2]
[328122354,1716904041507,-279.1103904,0.0002,2]
[328122355,1716904041532,-527.89257557,0.0002,4]
[328122356,1716904041554,-400.0,0.0002,2]
[328122357,1716904041575,-280.53391331,0.0002,2]
[328122358,1716904041597,-154.92253873,0.0002,2]
[328122359,1716904041644,-156.87995729,0.0002,2]
[328122360,1716904041690,-154.92253873,0.0002,2]
[328122361,1716904041738,-14514.84337736,0.0002,2]
[328122362,1716904153093,-190.173234,0.000156,2]
[328122406,1716904232520,-151.0,0.00018673,3]
[328122408,1716904232529,-104.066,0.00018673,2]
[328122544,1716904238924,-46.934,0.00018673,2]
[328122546,1716904238935,-2523.28439805,0.00018899,2]
[328122547,1716904238949,-746.43244146,0.000189,2]
[328122549,1716904238963,-2406.5357047,0.00019314,2]
[328122550,1716904238974,-347.32933494,0.00019899,2]
[328122551,1716904238984,-191.48432977,0.00019998,2]
[328122552,1716904238995,-500.0,0.00019999,2]
[328122553,1716904239005,-221.41700523,0.00019999,2]
[328122554,1716904239014,-311.16751082,0.00019999,2]
[328122555,1716904239026,-500.0,0.00019999,2]
[328122556,1716904239036,-353.66979175,0.00019999,2]
[328122557,1716904239046,-500.0,0.00019999,2]
[328122558,1716904239056,-500.0,0.00019999,2]
[328122559,1716904239066,-632.38795394,0.00019999,2]
[328122560,1716904239076,-500.0,0.00019999,2]
[328122561,1716904239086,-500.0,0.00019999,2]
[328122562,1716904239095,-500.0,0.00019999,2]
[328122563,1716904239104,-500.0,0.00019999,2]
[328122564,1716904239115,-500.0,0.00019999,2]
[328122565,1716904239125,-500.0,0.00019999,2]
[328122566,1716904239135,-500.0,0.00019999,2]
[328122567,1716904239145,-500.0,0.00019999,2]
[328122568,1716904239155,-500.0,0.00019999,2]
[328122569,1716904239166,-500.0,0.00019999,2]
[328122570,1716904239176,-500.0,0.00019999,2]
[328122571,1716904239186,-500.0,0.00019999,2]
[328122572,1716904239197,-500.0,0.00019999,2]
[328122573,1716904239208,-500.0,0.00019999,2]
[328122574,1716904239218,-500.0,0.00019999,2]
[328122575,1716904239229,-500.0,0.00019999,2]
[328122576,1716904239239,-500.0,0.00019999,2]
[328122577,1716904239249,-500.0,0.00019999,2]
[328122578,1716904239259,-383.47431789,0.00019999,2]
[328122579,1716904239270,-500.0,0.00019999,2]
[328122580,1716904239281,-500.0,0.00019999,2]
[328122581,1716904239291,-500.0,0.00019999,2]
[328122582,1716904239300,-500.0,0.00019999,2]
[328122583,1716904239310,-500.0,0.00019999,2]
[328122584,1716904239320,-500.0,0.00019999,2]
[328122585,1716904239330,-500.0,0.00019999,2]
[328122586,1716904239340,-500.0,0.00019999,2]
[328122587,1716904239350,-500.0,0.00019999,2]
[328122588,1716904239360,-500.0,0.00019999,2]
[328122589,1716904239370,-500.0,0.00019999,2]
[328122590,1716904239381,-500.0,0.00019999,2]
[328122591,1716904239391,-485.30912311,0.00019999,2]
[328122592,1716904239401,-500.0,0.00019999,2]
[328122593,1716904239412,-500.0,0.00019999,2]
[328122594,1716904239423,-500.0,0.00019999,2]
[328122595,1716904239433,-500.0,0.00019999,2]
[328122596,1716904239444,-500.0,0.00019999,2]
[328122597,1716904239458,-500.0,0.00019999,2]
[328122598,1716904239469,-500.0,0.00019999,2]
[328122599,1716904239664,-500.0,0.00019999,2]
[328122600,1716904239676,-500.0,0.00019999,2]
[328122601,1716904239686,-500.0,0.00019999,2]
[328122602,1716904239698,-500.0,0.00019999,2]
[328122603,1716904239714,-634.92176173,0.00019999,2]
[328122604,1716904239724,-500.0,0.00019999,2]
[328122605,1716904239734,-500.0,0.00019999,2]
[328122606,1716904239744,-500.0,0.00019999,2]
[328122607,1716904239753,-500.0,0.00019999,2]
[328122608,1716904239763,-120.8451582,0.00019999,2]
[328122609,1716904239776,-379.1548418,0.00019999,2]
[328122610,1716904239786,-500.0,0.00019999,2]
[328122611,1716904239796,-500.0,0.00019999,2]
[328122612,1716904239807,-100264.66216006,0.0002,2]
[328122703,1716904244039,-6336.90167047,0.0002,2]
[328122704,1716904244049,-7123.13094554,0.0002,2]
[328122806,1716904247027,-3628.36529927,0.0002,2]
[328122808,1716904247040,-3420.65742798,0.0002,2]
[328122810,1716904247053,-3091.33941062,0.0002,2]
[328122812,1716904247065,-26267.42669125,0.0002,2]
[328122833,1716904273759,154.92253873,9.999e-05,2]
[328122834,1716904279757,38.28639156,9.999e-05,2]
[328122835,1716904279778,59.826766,9.999e-05,2]
[328122836,1716904279806,1884.47876169,9.999e-05,2]
[328122837,1716904305450,316.80466515,9.999e-05,2]
[328122838,1716904323039,150.90945433,0.0002693,30]
[328122860,1716904964763,1314.63117139,9.999e-05,2]
[328122866,1716905133135,-48537.2042977,0.00016,2]
[328122867,1716905133155,-1902.24785379,0.00017999,2]
[328122868,1716905133177,-896.7707273,0.00018,2]
[328122869,1716905133198,-1314.63117139,0.00018653,2]
[328122870,1716905133218,-61793.77956372,0.000188,2]
[328122874,1716905235167,-12487.63360294,0.000188,2]
[328122930,1716905435210,-8438.63001859,0.000188,2]
[328122980,1716905442608,-3397.31546265,0.000188,2]
[328122998,1716905444369,-1972.52494792,0.000188,2]
[328123003,1716905444625,-61253.27469924,0.000188,2]
[328123092,1716905447404,-1598.91505521,0.000188,2]
[328123095,1716905770164,1314.63117139,9.999e-05,2]
[328123096,1716905792984,597.82832703,0.000199,7]
[328123097,1716905851067,298.91416351,0.000199,7]
[328123098,1716905851275,3806.32969707,0.000199,7]
[328123099,1716905913562,298.91416351,0.000199,7]
[328123108,1716905968512,1903.16484853,0.000199,7]
[328123113,1716906088920,951.58242427,0.000199,7]
[328123114,1716906203200,1583.44040528,9.999e-05,2]
[328123115,1716906211046,475.79121213,0.000199,7]
[328123123,1716906394167,-246.55926323,0.00018359,2]
[328123124,1716906426168,-2391.1919074,0.00018359,2]
[328123125,1716906426187,-4229.06661595,0.0001836,2]
[328123126,1716906426208,-56.5187185,0.000188,2]
[328123127,1716906429308,1314.63117139,9.999e-05,2]
[328123128,1716906437101,-28563.0248378,0.000188,2]
[328123167,1716906632084,-151.0,0.00018647,3]
[328123169,1716906632093,-151.0,0.00018647,3]
[328123171,1716906632103,-151.0,0.00018647,2]
[328123173,1716906632112,-435.23740997,0.00018799,2]
[328123196,1716906632336,-355.28152847,0.00018799,2]
[328123285,1716906638358,-524.11223295,0.00018799,2]
[328123286,1716906638369,-56.09232816,0.000188,2]
[328123287,1716906638381,-413.4705,0.000188,2]
[328123288,1716906638393,-481.55046928,0.000188,2]
[328123289,1716906638409,-6587.15465354,0.000188,2]
[328123290,1716906638421,-1003.64691559,0.000188,2]
[328123291,1716906638434,-6724.3172554,0.000188,2]
[328123490,1716906641910,-26571.48773094,0.000188,2]
[328123643,1716906644670,-11099.585001,0.000188,2]
[328123804,1716906646165,-3453.62456321,0.000188,2]
[328123806,1716906646177,-10224.22574473,0.000188,2]
[328123809,1716906646188,-2661.0,0.000188,2]
[328123814,1716906646231,-2026.72230803,0.000188,2]
[328123816,1716906646242,-3374.5013947,0.000188,2]
[328123822,1716906646283,-36577.83926548,0.000188,2]
[328124135,1716907244717,8369.68968486,0.00018,7]
[328124136,1716907301377,1314.63117139,9.999e-05,2]
[328124138,1716907628830,154.86497945,0.00015,2]
[328124139,1716907635168,-1314.63117139,0.00016999,2]
[328124140,1716907635189,-1000.0,0.00017,2]
[328124141,1716907635209,-1000.0,0.00018,2]
[328124142,1716907635228,-4229.06661595,0.00018384,2]
[328124143,1716907635250,-237.33731795,0.00018402,2]
[328124144,1716907635271,-154.92253873,0.00018498,2]
[328124145,1716907635296,-154.92253873,0.00018498,2]
[328124146,1716907635315,-154.86062544,0.00018498,2]
[328124147,1716907635335,-154.86062544,0.00018498,2]
[328124148,1716907635354,-489.74062823,0.00018499,2]
[328124149,1716907635373,-206.85196473,0.00018499,7]
[328124150,1716907635392,-54922.0,0.000185,2]
[328124151,1716907635412,-346.45028924,0.00018652,2]
[328124152,1716907635432,-237.33731791,0.00018752,2]
[328124153,1716907635452,-11212.91285626,0.000188,2]
[328124154,1716907636396,-37600.81993588,0.000188,2]
[328124155,1716907636417,-547.62162764,0.000189,2]
[328124156,1716907636438,-1000.0,0.00019,2]
[328124157,1716907636459,-237.33731791,0.00019101,2]
[328124158,1716907636478,-174.375222,0.00019178,2]
[328124159,1716907636498,-170.636113,0.00019178,2]
[328124160,1716907636518,-237.33731791,0.00019451,2]
[328124161,1716907636540,-2070.30635067,0.00019796,2]
[328124162,1716907636560,-237.33731791,0.000198,2]
[328124163,1716907636579,-219.73,0.00019851,3]
[328124164,1716907636599,-266.82,0.00019851,3]
[328124165,1716907636619,-800.51,0.00019851,3]
[328124166,1716907636639,-152.73222523,0.0001986,2]
[328124167,1716907636659,-351.65197346,0.0001986,2]
[328124168,1716907636680,-193.20893029,0.0001986,2]
[328124169,1716907636881,-500.0,0.0001986,2]
[328124170,1716907636905,-500.0,0.0001986,2]
[328124171,1716907636927,-500.0,0.0001986,2]
[328124172,1716907636951,-500.0,0.0001986,2]
[328124173,1716907636972,-500.0,0.0001986,2]
[328124174,1716907636994,-500.0,0.0001986,2]
[328124175,1716907637017,-250.0,0.0001986,2]
[328124176,1716907637046,-500.0,0.0001986,2]
[328124177,1716907637070,-500.0,0.0001986,2]
[328124178,1716907637093,-500.0,0.0001986,2]
[328124179,1716907637118,-500.0,0.0001986,2]
[328124180,1716907637142,-500.0,0.0001986,2]
[328124181,1716907637163,-194.66435646,0.0001986,2]
[328124182,1716907637187,-500.0,0.0001986,2]
[328124183,1716907637212,-500.0,0.0001986,2]
[328124184,1716907637236,-500.0,0.0001986,2]
[328124185,1716907637260,-517.1873107,0.0001986,2]
[328124186,1716907637283,-500.0,0.0001986,2]
[328124187,1716907637309,-500.0,0.0001986,2]
[328124188,1716907637331,-500.0,0.0001986,2]
[328124189,1716907637354,-500.0,0.0001986,2]
[328124190,1716907637376,-500.0,0.0001986,2]
[328124191,1716907637399,-500.0,0.0001986,2]
[328124192,1716907637424,-500.0,0.0001986,2]
[328124193,1716907637448,-500.0,0.0001986,2]
[328124194,1716907637468,-19959.4779877,0.00019861,2]
[328124195,1716907637488,-770.03976332,0.00019894,2]
[328124196,1716907637509,-2530.96187802,0.00019894,2]
[328124197,1716907637529,-363.59271146,0.00019894,7]
[328124198,1716907637556,-6826.78117017,0.00019896,7]
[328124199,1716907637576,-133626.77819046,0.00019896,2]
[328124200,1716907637596,-444168.51754981,0.000199,3]
[328124203,1716907647110,-48724.94405303,0.000199,3]
[328124204,1716907647130,-359.2836877,0.000199,2]
[328124205,1716907647149,-101533.98012858,0.000199,2]
[328124206,1716907647168,-896.31216814,0.00019994,2]
[328124207,1716907647188,-1886.89779185,0.00019994,2]
[328124208,1716907647211,-344.77320791,0.00019995,2]
[328124209,1716907647230,-246.55753604,0.00019995,2]
[328124210,1716907647250,-31619.50762645,0.00019996,2]
[328124211,1716907647270,-151.0,0.00019996,2]
[328124212,1716907647295,-151.0,0.00019996,2]
[328124213,1716907647315,-151.0,0.00019996,2]
[328124214,1716907647333,-151.0,0.00019996,2]
[328124215,1716907647352,-151.0,0.00019996,2]
[328124216,1716907647371,-151.0,0.00019996,2]
[328124217,1716907647391,-151.0,0.00019996,2]
[328124218,1716907647409,-151.0,0.00019996,2]
[328124219,1716907647429,-151.0,0.00019996,2]
[328124220,1716907647448,-151.0,0.00019996,2]
[328124221,1716907647469,-151.0,0.00019996,2]
[328124222,1716907647489,-22606.1223803,0.00019997,2]
[328124224,1716907649101,-7761.80702054,0.00019997,2]
[328124225,1716907649122,-189.79554045,0.00019998,2]
[328124226,1716907649142,-8152.56860306,0.00019998,2]
[328124227,1716907649162,-155.41138368,0.00019998,2]
[328124228,1716907649183,-276.05541924,0.00019998,2]
[328124229,1716907649204,-175.72514253,0.00019998,2]
[328124230,1716907649225,-5775.58056418,0.00019998,2]
[328124231,1716907649244,-288.35761329,0.00019998,2]
[328124232,1716907649264,-1258.16465698,0.00019998,2]
[328124233,1716907649284,-237.57694102,0.00019998,2]
[328124234,1716907649303,-156.87701235,0.00019998,2]
[328124235,1716907649323,-151.0,0.00019998,2]
[328124236,1716907649344,-151.0,0.00019998,2]
[328124237,1716907649364,-151.0,0.00019998,2]
[328124238,1716907649385,-151.0,0.00019998,2]
[328124239,1716907649406,-218.232094,0.00019998,2]
[328124240,1716907649436,-151.0,0.00019998,2]
[328124241,1716907649461,-151.0,0.00019998,2]
[328124242,1716907649486,-151.0,0.00019998,2]
[328124243,1716907649510,-2715.36921592,0.00019999,2]
[328124244,1716907649534,-6847.17309547,0.0002,2]
[328124245,1716907649562,-4158.38789162,0.0002,2]
[328124250,1716907720419,273.37336231,9.9e-05,2]
[328124380,1716907838883,-483.329018,0.00018899,2]
[328124390,1716907842577,-678.96,0.00018899,2]
[328124392,1716907842589,-152.34215339,0.00018899,2]
[328124393,1716907842599,-365.0810851,0.000189,2]
[328124394,1716907842608,-2046.28817343,0.00019761,2]
[328124395,1716907842620,-1071.39735,0.00019761,2]
[328124396,1716907842631,-9817.800421,0.00019761,2]
[328124397,1716907842641,-3713.12508207,0.00019762,2]
[328124398,1716907842650,-151.0,0.000199,2]
[328124399,1716907842660,-151.0,0.000199,2]
[328124400,1716907842670,-151.0,0.000199,2]
[328124401,1716907842679,-151.0,0.00019996,2]
[328124402,1716907842688,-151.0,0.00019996,2]
[328124403,1716907842698,-151.0,0.00019998,2]
[328124404,1716907842707,-151.0,0.00019998,2]
[328124405,1716907842716,-206.44649455,0.0002,2]
[328124406,1716907842726,-1000.0,0.0002,2]
[328124407,1716907842735,-280.53391331,0.0002,2]
[328124408,1716907842745,-151.0,0.0002,2]
[328124409,1716907842754,-293.26648,0.0002,2]
[328124410,1716907842764,-210.216723,0.0002,2]
[328124411,1716907842773,-151.0,0.0002,2]
[328124412,1716907842781,-151.0,0.0002,2]
[328124413,1716907842791,-252.836733,0.0002,2]
[328124414,1716907842801,-7710.90597459,0.0002,2]
[328124429,1716907843862,-15160.73516871,0.0002,2]
[328124431,1716907843872,-154.86062544,0.0002,2]
[328124432,1716907843881,-400.0,0.0002,2]
[328124433,1716907843891,-154.86062544,0.0002,2]
[328124434,1716907843900,-156.87995729,0.0002,2]
[328124435,1716907843909,-3713.12508208,0.00020288,2]
[328124436,1716907843919,-308.7194064,0.00020293,2]
[328124437,1716907843928,-392.80011615,0.000203,2]
[328124438,1716907843938,-9744.68956251,0.00020457,2]
[328124546,1716907847057,-339.725,0.00020457,2]
[328124574,1716907967045,154.86062544,9.999e-05,2]
[328124575,1716907994793,521.97323765,9.999e-05,2]